[Event "Titled Tuesday Blitz October 5 2021"]
[White "Alvarez Calzadilla, Jose Avelino"]
[Black "Klimciauskas, Domantas"]
[WhiteFideId "3526151"]
[BlackFideId "12802999"]
[WhiteElo "2532"]
[BlackElo "2255"]
[Result "1-0"]
[Round "06"]
[TimeControl "180+1"]
[Date "2021.10.05"]
[WhiteClock "0:00:41"]
[BlackClock "0:00:11"]

1. d4 {[%clk 0:03:00]}  g6 {[%clk 0:02:56]} 2. e4 {[%clk 0:02:59]}  Bg7 {[%clk 0:02:55]} 3. Nf3 {[%clk 0:02:58]}  d6 {[%clk 0:02:53]} 4. c3 {[%clk 0:02:57]}  Nf6 {[%clk 0:02:48]} 5. Bd3 {[%clk 0:02:55]}  O-O {[%clk 0:02:47]} 6. O-O {[%clk 0:02:55]}  Nc6 {[%clk 0:02:47]} 7. Re1 {[%clk 0:02:53]}  e5 {[%clk 0:02:47]} 8. d5 {[%clk 0:02:53]}  Ne7 {[%clk 0:02:45]} 9. c4 {[%clk 0:02:53]}  h5 {[%clk 0:02:42]} 10. Nc3 {[%clk 0:02:52]}  Nh7 {[%clk 0:02:41]} 11. b4 {[%clk 0:02:52]}  a5 {[%clk 0:02:38]} 12. bxa5 {[%clk 0:02:51]}  Rxa5 {[%clk 0:02:37]} 13. a4 {[%clk 0:02:52]}  f5 {[%clk 0:02:34]} 14. Ba3 {[%clk 0:02:49]}  g5 {[%clk 0:02:22]} 15. Bb4 {[%clk 0:02:44]}  Ra8 {[%clk 0:02:20]} 16. c5 {[%clk 0:02:28]}  g4 {[%clk 0:02:18]} 17. Nd2 {[%clk 0:02:25]}  f4 {[%clk 0:02:09]} 18. cxd6 {[%clk 0:02:25]}  cxd6 {[%clk 0:02:09]} 19. Nb5 {[%clk 0:02:24]}  Rf6 {[%clk 0:02:01]} 20. Nc4 {[%clk 0:02:24]}  Ra6 {[%clk 0:01:59]} 21. Qb3 {[%clk 0:02:02]}  Ng6 {[%clk 0:01:56]} 22. Rec1 {[%clk 0:01:48]}  Bf8 {[%clk 0:01:53]} 23. Qa3 {[%clk 0:01:39]}  Bd7 {[%clk 0:01:05]} 24. Ncxd6 {[%clk 0:01:26]}  Bxd6 {[%clk 0:01:01]} 25. Nxd6 {[%clk 0:01:18]}  Rxa4 {[%clk 0:01:00]} 26. Qb3 {[%clk 0:01:12]}  Rxa1 {[%clk 0:00:53]} 27. Rxa1 {[%clk 0:01:12]}  g3 {[%clk 0:00:40]} 28. hxg3 {[%clk 0:01:11]}  fxg3 {[%clk 0:00:40]} 29. fxg3 {[%clk 0:01:11]}  Qb6+ {[%clk 0:00:35]} 30. Kh2 {[%clk 0:01:07]}  Rxd6 {[%clk 0:00:35]} 31. Ra8+ {[%clk 0:01:05]}  Kg7 {[%clk 0:00:32]} 32. Qc3 {[%clk 0:01:02]}  Rf6 {[%clk 0:00:21]} 33. Bc5 {[%clk 0:00:59]}  Qc7 {[%clk 0:00:18]} 34. Bf8+ {[%clk 0:00:57]}  Nhxf8 {[%clk 0:00:17]} 35. Qxc7 {[%clk 0:00:57]}  h4 {[%clk 0:00:16]} 36. gxh4 {[%clk 0:00:54]}  Rf2 {[%clk 0:00:13]} 37. Rxf8 {[%clk 0:00:48]}  Nxf8 {[%clk 0:00:13]} 38. Qxe5+ {[%clk 0:00:48]}  Kf7 {[%clk 0:00:11]} 39. Qh5+ {[%clk 0:00:45]}  Ng6 {[%clk 0:00:11]} 40. e5 {[%clk 0:00:41]} 1-0


[Site "https://www.chess.com"]

[Event "Titled Tuesday Blitz October 5 2021"]
[White "Andreikin, Dmitry"]
[Black "Holt, Conrad"]
[WhiteFideId "4158814"]
[BlackFideId "2034387"]
[WhiteElo "2736"]
[BlackElo "2586"]
[Result "0-1"]
[Round "06"]
[TimeControl "180+1"]
[Date "2021.10.05"]
[WhiteClock "0:00:21"]
[BlackClock "0:01:43"]

1. e4 {[%clk 0:03:00]}  e6 {[%clk 0:02:59]} 2. d4 {[%clk 0:03:00]}  d5 {[%clk 0:03:00]} 3. Nc3 {[%clk 0:03:00]}  Nf6 {[%clk 0:03:00]} 4. e5 {[%clk 0:03:00]}  Nfd7 {[%clk 0:02:59]} 5. f4 {[%clk 0:03:00]}  c5 {[%clk 0:03:00]} 6. Nf3 {[%clk 0:03:00]}  Nc6 {[%clk 0:03:01]} 7. Be3 {[%clk 0:03:00]}  cxd4 {[%clk 0:03:01]} 8. Nxd4 {[%clk 0:03:00]}  Bc5 {[%clk 0:03:02]} 9. Qd2 {[%clk 0:02:59]}  O-O {[%clk 0:03:03]} 10. O-O-O {[%clk 0:02:58]}  a6 {[%clk 0:03:03]} 11. Kb1 {[%clk 0:02:51]}  Qc7 {[%clk 0:03:00]} 12. h4 {[%clk 0:02:48]}  Nxd4 {[%clk 0:03:00]} 13. Bxd4 {[%clk 0:02:48]}  b5 {[%clk 0:03:01]} 14. h5 {[%clk 0:02:41]}  b4 {[%clk 0:02:59]} 15. Ne2 {[%clk 0:02:40]}  a5 {[%clk 0:02:59]} 16. h6 {[%clk 0:02:27]}  g6 {[%clk 0:02:58]} 17. Qe1 {[%clk 0:02:27]}  Ba6 {[%clk 0:02:52]} 18. Qh4 {[%clk 0:02:22]}  Rfc8 {[%clk 0:02:49]} 19. Bxc5 {[%clk 0:02:18]}  Bxe2 {[%clk 0:02:41]} 20. Bxe2 {[%clk 0:02:19]}  Qxc5 {[%clk 0:02:41]} 21. Bd3 {[%clk 0:02:18]}  a4 {[%clk 0:02:41]} 22. f5 {[%clk 0:02:10]}  b3 {[%clk 0:02:21]} 23. cxb3 {[%clk 0:01:36]}  axb3 {[%clk 0:02:20]} 24. fxe6 {[%clk 0:01:32]}  Rxa2 {[%clk 0:02:11]} 25. exf7+ {[%clk 0:00:40]}  Kf8 {[%clk 0:02:10]} 26. Bc4 {[%clk 0:00:28]}  Rca8 {[%clk 0:01:46]} 27. Kc1 {[%clk 0:00:21]}  Qe3+ {[%clk 0:01:43]} 0-1


[Site "https://www.chess.com"]

[Event "Titled Tuesday Blitz October 5 2021"]
[White "Begunov, Konstantin"]
[Black "Potapova, Margarita"]
[WhiteFideId "4118510"]
[BlackFideId "14126869"]
[WhiteElo "2262"]
[BlackElo "2214"]
[Result "0-1"]
[Round "06"]
[TimeControl "180+1"]
[Date "2021.10.05"]
[WhiteClock "0:00:01"]
[BlackClock "0:00:21"]

1. d4 {[%clk 0:02:57]}  Nf6 {[%clk 0:02:59]} 2. c4 {[%clk 0:02:57]}  e6 {[%clk 0:02:59]} 3. Nf3 {[%clk 0:02:57]}  d5 {[%clk 0:02:59]} 4. cxd5 {[%clk 0:02:57]}  exd5 {[%clk 0:02:59]} 5. Nc3 {[%clk 0:02:57]}  Bb4 {[%clk 0:02:57]} 6. Qa4+ {[%clk 0:02:49]}  Nc6 {[%clk 0:02:56]} 7. Ne5 {[%clk 0:02:49]}  Bd7 {[%clk 0:02:54]} 8. Nxc6 {[%clk 0:02:44]}  Bxc3+ {[%clk 0:02:54]} 9. bxc3 {[%clk 0:02:45]}  Bxc6 {[%clk 0:02:55]} 10. Qc2 {[%clk 0:02:44]}  Ne4 {[%clk 0:02:45]} 11. e3 {[%clk 0:02:36]}  Qg5 {[%clk 0:02:43]} 12. g3 {[%clk 0:01:49]}  h5 {[%clk 0:02:38]} 13. f3 {[%clk 0:01:43]}  Nd6 {[%clk 0:02:32]} 14. Bd3 {[%clk 0:01:34]}  h4 {[%clk 0:02:28]} 15. e4 {[%clk 0:01:28]}  Qe7 {[%clk 0:02:28]} 16. O-O {[%clk 0:01:12]}  hxg3 {[%clk 0:02:26]} 17. hxg3 {[%clk 0:01:12]}  O-O-O {[%clk 0:01:57]} 18. e5 {[%clk 0:01:05]}  Nc4 {[%clk 0:01:57]} 19. Kg2 {[%clk 0:00:54]}  Kb8 {[%clk 0:01:53]} 20. Bd2 {[%clk 0:00:40]}  f6 {[%clk 0:01:26]} 21. f4 {[%clk 0:00:27]}  fxe5 {[%clk 0:01:21]} 22. fxe5 {[%clk 0:00:28]}  Nxe5 {[%clk 0:01:08]} 23. dxe5 {[%clk 0:00:21]}  d4+ {[%clk 0:01:03]} 24. Kf2 {[%clk 0:00:15]}  Qxe5 {[%clk 0:00:50]} 25. Bf4 {[%clk 0:00:13]}  Qd5 {[%clk 0:00:36]} 26. Ke1 {[%clk 0:00:08]}  dxc3 {[%clk 0:00:35]} 27. Be2 {[%clk 0:00:05]}  Rhe8 {[%clk 0:00:30]} 28. Rd1 {[%clk 0:00:04]}  Qc5 {[%clk 0:00:24]} 29. Rxd8+ {[%clk 0:00:05]}  Rxd8 {[%clk 0:00:24]} 30. Bg5 {[%clk 0:00:01]}  Re8 {[%clk 0:00:22]} 31. Rf4 {[%clk 0:00:01]}  a6 {[%clk 0:00:21]} 0-1


[Site "https://www.chess.com"]

[Event "Titled Tuesday Blitz October 5 2021"]
[White "Chitlange Sakshi"]
[Black "Skatchkov, Valery"]
[WhiteFideId "35002899"]
[BlackFideId "24195812"]
[WhiteElo "1787"]
[BlackElo "2195"]
[Result "0-1"]
[Round "06"]
[TimeControl "180+1"]
[Date "2021.10.05"]
[WhiteClock "0:00:07"]
[BlackClock "0:02:33"]

1. d4 {[%clk 0:03:00]}  Nf6 {[%clk 0:02:55]} 2. Bf4 {[%clk 0:03:00]}  d5 {[%clk 0:02:54]} 3. e3 {[%clk 0:03:00]}  c5 {[%clk 0:02:55]} 4. Nd2 {[%clk 0:03:00]}  Nc6 {[%clk 0:02:56]} 5. Ngf3 {[%clk 0:03:00]}  e6 {[%clk 0:02:57]} 6. c3 {[%clk 0:02:59]}  Nh5 {[%clk 0:02:57]} 7. Bg5 {[%clk 0:02:56]}  f6 {[%clk 0:02:58]} 8. Bh4 {[%clk 0:02:55]}  g6 {[%clk 0:02:59]} 9. Be2 {[%clk 0:02:52]}  Bd6 {[%clk 0:02:59]} 10. dxc5 {[%clk 0:02:31]}  Bxc5 {[%clk 0:02:58]} 11. c4 {[%clk 0:02:31]}  d4 {[%clk 0:02:56]} 12. Nxd4 {[%clk 0:02:28]}  Bxd4 {[%clk 0:02:55]} 13. Bxh5 {[%clk 0:02:16]}  Bxb2 {[%clk 0:02:53]} 14. Rb1 {[%clk 0:02:15]}  Bc3 {[%clk 0:02:47]} 15. Be2 {[%clk 0:02:14]}  O-O {[%clk 0:02:48]} 16. Qc2 {[%clk 0:02:02]}  Ba5 {[%clk 0:02:44]} 17. Rd1 {[%clk 0:01:58]}  e5 {[%clk 0:02:44]} 18. O-O {[%clk 0:01:55]}  Bf5 {[%clk 0:02:45]} 19. Qb2 {[%clk 0:01:48]}  Qe7 {[%clk 0:02:45]} 20. Nb3 {[%clk 0:01:36]}  Bc7 {[%clk 0:02:45]} 21. Bg3 {[%clk 0:01:32]}  Rad8 {[%clk 0:02:43]} 22. c5 {[%clk 0:01:16]}  Be6 {[%clk 0:02:40]} 23. Qc3 {[%clk 0:01:11]}  f5 {[%clk 0:02:39]} 24. f4 {[%clk 0:00:52]}  exf4 {[%clk 0:02:34]} 25. Bxf4 {[%clk 0:00:52]}  Bxf4 {[%clk 0:02:34]} 26. exf4 {[%clk 0:00:49]}  Bxb3 {[%clk 0:02:32]} 27. Qxb3+ {[%clk 0:00:49]}  Kg7 {[%clk 0:02:33]} 28. Qc3+ {[%clk 0:00:43]}  Qf6 {[%clk 0:02:33]} 29. Qxf6+ {[%clk 0:00:39]}  Kxf6 {[%clk 0:02:34]} 30. Rb1 {[%clk 0:00:33]}  Rf7 {[%clk 0:02:35]} 31. Bf3 {[%clk 0:00:32]}  Rd4 {[%clk 0:02:26]} 32. Bxc6 {[%clk 0:00:28]}  bxc6 {[%clk 0:02:26]} 33. Rb3 {[%clk 0:00:17]}  Ke6 {[%clk 0:02:26]} 34. Re3+ {[%clk 0:00:13]}  Re4 {[%clk 0:02:26]} 35. Rc3 {[%clk 0:00:12]}  Kd5 {[%clk 0:02:26]} 36. Rd1+ {[%clk 0:00:11]}  Rd4 {[%clk 0:02:27]} 37. Rf1 {[%clk 0:00:08]}  Rb7 {[%clk 0:02:27]} 38. g3 {[%clk 0:00:07]}  Rb2 {[%clk 0:02:27]} 39. Rf2 {[%clk 0:00:05]}  Rd1+ {[%clk 0:02:28]} 40. Kg2 {[%clk 0:00:05]}  Rdd2 {[%clk 0:02:29]} 41. Rd3+ {[%clk 0:00:02]}  Rxd3 {[%clk 0:02:29]} 42. Rxb2 {[%clk 0:00:03]}  Kxc5 {[%clk 0:02:29]} 43. Rb7 {[%clk 0:00:03]}  Rd2+ {[%clk 0:02:30]} 44. Kf3 {[%clk 0:00:03]}  Rxa2 {[%clk 0:02:31]} 45. Rxh7 {[%clk 0:00:04]}  a5 {[%clk 0:02:32]} 46. Rh6 {[%clk 0:00:04]}  a4 {[%clk 0:02:33]} 47. Rxg6 {[%clk 0:00:05]}  Rd2 {[%clk 0:02:34]} 48. Rg8 {[%clk 0:00:05]}  a3 {[%clk 0:02:34]} 49. Ra8 {[%clk 0:00:06]}  a2 {[%clk 0:02:35]} 50. h4 {[%clk 0:00:06]}  Kb4 {[%clk 0:02:34]} 51. h5 {[%clk 0:00:07]}  Kb3 {[%clk 0:02:35]} 52. h6 {[%clk 0:00:07]}  Kb2 {[%clk 0:02:34]} 53. h7 {[%clk 0:00:07]}  Rh2 {[%clk 0:02:34]} 54. Ra7 {[%clk 0:00:04]}  a1=Q {[%clk 0:02:32]} 55. Rxa1 {[%clk 0:00:05]}  Kxa1 {[%clk 0:02:33]} 56. g4 {[%clk 0:00:06]}  fxg4+ {[%clk 0:02:33]} 57. Kxg4 {[%clk 0:00:07]} 0-1


[Site "https://www.chess.com"]

[Event "Titled Tuesday Blitz October 5 2021"]
[White "Csonka, Balazs"]
[Black "Maksimenko, Viktor"]
[WhiteFideId "742910"]
[BlackFideId "13710478"]
[WhiteElo "2404"]
[BlackElo "2269"]
[Result "1-0"]
[Round "06"]
[TimeControl "180+1"]
[Date "2021.10.05"]
[WhiteClock "0:00:09"]
[BlackClock "0:00:01"]

1. d4 {[%clk 0:03:00]}  Nf6 {[%clk 0:02:59]} 2. c4 {[%clk 0:03:00]}  e6 {[%clk 0:03:00]} 3. Nc3 {[%clk 0:02:58]}  Bb4 {[%clk 0:03:00]} 4. e3 {[%clk 0:02:58]}  O-O {[%clk 0:02:58]} 5. Ne2 {[%clk 0:02:58]}  d5 {[%clk 0:02:57]} 6. a3 {[%clk 0:02:58]}  Be7 {[%clk 0:02:53]} 7. cxd5 {[%clk 0:02:48]}  exd5 {[%clk 0:02:53]} 8. Nf4 {[%clk 0:02:48]}  Re8 {[%clk 0:02:52]} 9. Bd3 {[%clk 0:02:47]}  Bf8 {[%clk 0:02:51]} 10. O-O {[%clk 0:02:41]}  b6 {[%clk 0:02:47]} 11. b4 {[%clk 0:02:37]}  Bb7 {[%clk 0:02:46]} 12. Rb1 {[%clk 0:02:30]}  a5 {[%clk 0:02:40]} 13. b5 {[%clk 0:02:21]}  Nbd7 {[%clk 0:02:34]} 14. Qf3 {[%clk 0:02:17]}  Nb8 {[%clk 0:02:00]} 15. Bb2 {[%clk 0:02:08]}  Ne4 {[%clk 0:01:49]} 16. Rbc1 {[%clk 0:01:45]}  Nxc3 {[%clk 0:01:29]} 17. Rxc3 {[%clk 0:01:42]}  Bd6 {[%clk 0:01:30]} 18. Rfc1 {[%clk 0:01:30]}  Qg5 {[%clk 0:01:25]} 19. a4 {[%clk 0:01:21]}  Rc8 {[%clk 0:00:26]} 20. Ba3 {[%clk 0:01:15]}  Nd7 {[%clk 0:00:17]} 21. Bxd6 {[%clk 0:01:06]}  cxd6 {[%clk 0:00:18]} 22. Qh3 {[%clk 0:00:45]}  Rxc3 {[%clk 0:00:13]} 23. Qxh7+ {[%clk 0:00:37]}  Kf8 {[%clk 0:00:14]} 24. Rxc3 {[%clk 0:00:37]}  Ke7 {[%clk 0:00:03]} 25. Rc7 {[%clk 0:00:32]}  Rc8 {[%clk 0:00:01]} 26. Rxb7 {[%clk 0:00:27]}  Rc1+ {[%clk 0:00:02]} 27. Bf1 {[%clk 0:00:27]}  Qg4 {[%clk 0:00:03]} 28. Nxd5+ {[%clk 0:00:18]}  Ke6 {[%clk 0:00:02]} 29. Nf4+ {[%clk 0:00:18]}  Ke7 {[%clk 0:00:02]} 30. Qe4+ {[%clk 0:00:18]}  Kf8 {[%clk 0:00:02]} 31. f3 {[%clk 0:00:15]}  Qg5 {[%clk 0:00:01]} 32. Rxd7 {[%clk 0:00:14]}  Kg8 {[%clk 0:00:02]} 33. Qe8+ {[%clk 0:00:11]}  Kh7 {[%clk 0:00:02]} 34. Qxf7 {[%clk 0:00:10]}  Qh6 {[%clk 0:00:01]} 35. Qf5+ {[%clk 0:00:09]}  Kh8 {[%clk 0:00:01]} 36. Rd8# {[%clk 0:00:09]} 1-0


[Site "https://www.chess.com"]

[Event "Titled Tuesday Blitz October 5 2021"]
[White "Ekdyshman, Mikhail"]
[Black "Aldokhin, Ivan"]
[WhiteFideId "4149416"]
[BlackFideId "24115720"]
[WhiteElo "2256"]
[BlackElo "2231"]
[Result "1/2-1/2"]
[Round "06"]
[TimeControl "180+1"]
[Date "2021.10.05"]
[WhiteClock "0:00:05"]
[BlackClock "0:00:06"]

1. d4 {[%clk 0:02:58]}  Nf6 {[%clk 0:02:59]} 2. c4 {[%clk 0:02:58]}  g6 {[%clk 0:02:59]} 3. Nc3 {[%clk 0:02:57]}  Bg7 {[%clk 0:03:00]} 4. e4 {[%clk 0:02:57]}  d6 {[%clk 0:03:00]} 5. f3 {[%clk 0:02:57]}  O-O {[%clk 0:03:00]} 6. Be3 {[%clk 0:02:57]}  c5 {[%clk 0:02:57]} 7. Nge2 {[%clk 0:02:57]}  cxd4 {[%clk 0:02:55]} 8. Nxd4 {[%clk 0:02:57]}  Nbd7 {[%clk 0:02:53]} 9. Be2 {[%clk 0:02:57]}  b6 {[%clk 0:02:49]} 10. O-O {[%clk 0:02:57]}  Bb7 {[%clk 0:02:49]} 11. Qd2 {[%clk 0:02:57]}  Re8 {[%clk 0:02:47]} 12. Rac1 {[%clk 0:02:57]}  a6 {[%clk 0:02:46]} 13. Rfd1 {[%clk 0:02:57]}  Rc8 {[%clk 0:02:42]} 14. Bf1 {[%clk 0:02:57]}  Qc7 {[%clk 0:02:40]} 15. b4 {[%clk 0:02:44]}  Qb8 {[%clk 0:02:39]} 16. Nb3 {[%clk 0:02:39]}  Ne5 {[%clk 0:01:39]} 17. Na4 {[%clk 0:02:38]}  Nfd7 {[%clk 0:01:31]} 18. Nxb6 {[%clk 0:02:21]}  Nxb6 {[%clk 0:01:30]} 19. Bxb6 {[%clk 0:02:21]}  Bxe4 {[%clk 0:01:30]} 20. Bd4 {[%clk 0:02:13]}  Bxf3 {[%clk 0:00:41]} 21. Re1 {[%clk 0:01:50]}  Ba8 {[%clk 0:00:34]} 22. b5 {[%clk 0:01:46]}  Nd7 {[%clk 0:00:26]} 23. a4 {[%clk 0:01:34]}  Nc5 {[%clk 0:00:22]} 24. Nxc5 {[%clk 0:01:19]}  Bxd4+ {[%clk 0:00:21]} 25. Qxd4 {[%clk 0:01:19]}  Rxc5 {[%clk 0:00:19]} 26. a5 {[%clk 0:01:14]}  Qc7 {[%clk 0:00:12]} 27. Ra1 {[%clk 0:00:50]}  Rc8 {[%clk 0:00:12]} 28. b6 {[%clk 0:00:47]}  Qb7 {[%clk 0:00:10]} 29. Qh4 {[%clk 0:00:39]}  Re8 {[%clk 0:00:09]} 30. Re3 {[%clk 0:00:34]}  Qc6 {[%clk 0:00:06]} 31. Rxe7 {[%clk 0:00:30]}  Rxe7 {[%clk 0:00:05]} 32. Qxe7 {[%clk 0:00:29]}  Re5 {[%clk 0:00:06]} 33. Qd8+ {[%clk 0:00:26]}  Kg7 {[%clk 0:00:06]} 34. Qh4 {[%clk 0:00:15]}  Re2 {[%clk 0:00:04]} 35. Qd4+ {[%clk 0:00:12]}  Kg8 {[%clk 0:00:03]} 36. Qd5 {[%clk 0:00:10]}  Qxd5 {[%clk 0:00:03]} 37. cxd5 {[%clk 0:00:10]}  Rb2 {[%clk 0:00:03]} 38. Rd1 {[%clk 0:00:07]}  Bb7 {[%clk 0:00:03]} 39. Rc1 {[%clk 0:00:05]}  Bxd5 {[%clk 0:00:02]} 40. Bxa6 {[%clk 0:00:05]}  Kg7 {[%clk 0:00:02]} 41. b7 {[%clk 0:00:04]}  Rxg2+ {[%clk 0:00:02]} 42. Kf1 {[%clk 0:00:05]}  Rb2 {[%clk 0:00:03]} 43. Rc7 {[%clk 0:00:05]}  Kf6 {[%clk 0:00:03]} 44. Rc8 {[%clk 0:00:03]}  Ke5 {[%clk 0:00:03]} 45. b8=Q {[%clk 0:00:03]}  Bg2+ {[%clk 0:00:03]} 46. Ke1 {[%clk 0:00:04]}  Rxb8 {[%clk 0:00:03]} 47. Rxb8 {[%clk 0:00:05]}  Bd5 {[%clk 0:00:04]} 48. Rb5 {[%clk 0:00:05]}  Kd4 {[%clk 0:00:03]} 49. Rb6 {[%clk 0:00:04]}  Kc5 {[%clk 0:00:03]} 50. Kd2 {[%clk 0:00:05]}  f5 {[%clk 0:00:03]} 51. Kc3 {[%clk 0:00:05]}  f4 {[%clk 0:00:04]} 52. Rb4 {[%clk 0:00:05]}  g5 {[%clk 0:00:03]} 53. Rb8 {[%clk 0:00:04]}  f3 {[%clk 0:00:03]} 54. Rf8 {[%clk 0:00:03]}  g4 {[%clk 0:00:03]} 55. Bf1 {[%clk 0:00:03]}  h5 {[%clk 0:00:03]} 56. a6 {[%clk 0:00:03]}  Kb6 {[%clk 0:00:03]} 57. Kd4 {[%clk 0:00:03]}  Bc6 {[%clk 0:00:03]} 58. Rf6 {[%clk 0:00:03]}  h4 {[%clk 0:00:03]} 59. Ke3 {[%clk 0:00:03]}  g3 {[%clk 0:00:03]} 60. hxg3 {[%clk 0:00:03]}  hxg3 {[%clk 0:00:04]} 61. Rxd6 {[%clk 0:00:02]}  g2 {[%clk 0:00:04]} 62. Bxg2 {[%clk 0:00:02]}  fxg2 {[%clk 0:00:04]} 63. Kf2 {[%clk 0:00:02]}  Kc7 {[%clk 0:00:04]} 64. Rg6 {[%clk 0:00:01]}  Bd5 {[%clk 0:00:04]} 65. a7 {[%clk 0:00:01]}  Kb7 {[%clk 0:00:04]} 66. Rg7+ {[%clk 0:00:01]}  Ka8 {[%clk 0:00:04]} 67. Rd7 {[%clk 0:00:02]}  Bb7 {[%clk 0:00:04]} 68. Rc7 {[%clk 0:00:02]}  Kxa7 {[%clk 0:00:04]} 69. Re7 {[%clk 0:00:02]}  Kb6 {[%clk 0:00:05]} 70. Rg7 {[%clk 0:00:03]}  Bc6 {[%clk 0:00:05]} 71. Rg5 {[%clk 0:00:04]}  Kc7 {[%clk 0:00:05]} 72. Rg6 {[%clk 0:00:04]}  Kb6 {[%clk 0:00:05]} 73. Rf6 {[%clk 0:00:05]}  Kc5 {[%clk 0:00:05]} 74. Rf5+ {[%clk 0:00:05]}  Bd5 {[%clk 0:00:05]} 75. Rxd5+ {[%clk 0:00:04]}  Kxd5 {[%clk 0:00:06]} 76. Kxg2 {[%clk 0:00:05]} 1/2-1/2


[Site "https://www.chess.com"]

[Event "Titled Tuesday Blitz October 5 2021"]
[White "Estrada Nieto, Julian"]
[Black "Sydoryka, Vladyslav"]
[WhiteFideId "5101018"]
[BlackFideId "14145928"]
[WhiteElo "2270"]
[BlackElo "2282"]
[Result "0-1"]
[Round "06"]
[TimeControl "180+1"]
[Date "2021.10.05"]
[WhiteClock "0:00:02"]
[BlackClock "0:00:08"]

1. e4 {[%clk 0:03:00]}  c6 {[%clk 0:02:49]} 2. d4 {[%clk 0:03:00]}  d5 {[%clk 0:02:50]} 3. exd5 {[%clk 0:03:00]}  cxd5 {[%clk 0:02:49]} 4. Bd3 {[%clk 0:03:00]}  Nc6 {[%clk 0:02:48]} 5. c3 {[%clk 0:03:00]}  Qc7 {[%clk 0:02:49]} 6. Ne2 {[%clk 0:02:56]}  Bg4 {[%clk 0:02:46]} 7. O-O {[%clk 0:02:55]}  Nf6 {[%clk 0:02:40]} 8. f3 {[%clk 0:02:50]}  Bh5 {[%clk 0:02:40]} 9. Bf4 {[%clk 0:02:50]}  Qb6 {[%clk 0:02:37]} 10. Qb3 {[%clk 0:02:49]}  Qxb3 {[%clk 0:02:33]} 11. axb3 {[%clk 0:02:49]}  Bg6 {[%clk 0:02:33]} 12. Bxg6 {[%clk 0:02:43]}  hxg6 {[%clk 0:02:34]} 13. Nd2 {[%clk 0:02:38]}  e6 {[%clk 0:02:33]} 14. b4 {[%clk 0:02:38]}  Kd7 {[%clk 0:02:15]} 15. b5 {[%clk 0:02:28]}  Ne7 {[%clk 0:02:11]} 16. Ra4 {[%clk 0:02:22]}  Nc8 {[%clk 0:01:49]} 17. c4 {[%clk 0:02:07]}  Bd6 {[%clk 0:01:42]} 18. Bxd6 {[%clk 0:02:01]}  Nxd6 {[%clk 0:01:43]} 19. b3 {[%clk 0:01:50]}  Rhc8 {[%clk 0:01:39]} 20. Rfa1 {[%clk 0:01:48]}  Rc7 {[%clk 0:01:23]} 21. b6 {[%clk 0:01:39]}  Rc6 {[%clk 0:01:16]} 22. bxa7 {[%clk 0:01:36]}  b5 {[%clk 0:01:13]} 23. cxb5 {[%clk 0:01:23]}  Nxb5 {[%clk 0:01:14]} 24. Ra5 {[%clk 0:01:15]}  Rb6 {[%clk 0:01:09]} 25. Ra6 {[%clk 0:00:53]}  Rb7 {[%clk 0:01:06]} 26. Kf2 {[%clk 0:00:51]}  Raxa7 {[%clk 0:01:03]} 27. Rxa7 {[%clk 0:00:51]}  Nxa7 {[%clk 0:01:04]} 28. Nc3 {[%clk 0:00:45]}  Nc6 {[%clk 0:00:35]} 29. Ke3 {[%clk 0:00:42]}  Ne8 {[%clk 0:00:34]} 30. Na4 {[%clk 0:00:39]}  Ke7 {[%clk 0:00:33]} 31. Nc5 {[%clk 0:00:38]}  Rc7 {[%clk 0:00:33]} 32. Ra4 {[%clk 0:00:33]}  Nd6 {[%clk 0:00:33]} 33. Kd3 {[%clk 0:00:30]}  Nf5 {[%clk 0:00:16]} 34. g4 {[%clk 0:00:27]}  Nfxd4 {[%clk 0:00:15]} 35. Rxd4 {[%clk 0:00:27]}  Ne5+ {[%clk 0:00:15]} 36. Kc3 {[%clk 0:00:20]}  Rxc5+ {[%clk 0:00:15]} 37. Kb4 {[%clk 0:00:20]}  Rc2 {[%clk 0:00:15]} 38. Kb5 {[%clk 0:00:18]}  g5 {[%clk 0:00:13]} 39. b4 {[%clk 0:00:18]}  Kf6 {[%clk 0:00:07]} 40. Ka6 {[%clk 0:00:16]}  Nc6 {[%clk 0:00:07]} 41. Nb3 {[%clk 0:00:12]}  Nxd4 {[%clk 0:00:05]} 42. Nxd4 {[%clk 0:00:12]}  Rc4 {[%clk 0:00:05]} 43. Nb5 {[%clk 0:00:10]}  Rxb4 {[%clk 0:00:05]} 44. Nd6 {[%clk 0:00:10]}  Rb2 {[%clk 0:00:04]} 45. Ka5 {[%clk 0:00:09]}  Rxh2 {[%clk 0:00:04]} 46. Ne8+ {[%clk 0:00:09]}  Kg6 {[%clk 0:00:04]} 47. Nd6 {[%clk 0:00:09]}  Rf2 {[%clk 0:00:04]} 48. Kb5 {[%clk 0:00:08]}  Rxf3 {[%clk 0:00:04]} 49. Kc5 {[%clk 0:00:09]}  Rf4 {[%clk 0:00:05]} 50. Nb5 {[%clk 0:00:05]}  Rxg4 {[%clk 0:00:05]} 51. Kd6 {[%clk 0:00:04]}  Rc4 {[%clk 0:00:06]} 52. Ke5 {[%clk 0:00:04]}  Re4+ {[%clk 0:00:07]} 53. Kd6 {[%clk 0:00:04]}  Kf5 {[%clk 0:00:07]} 54. Nc7 {[%clk 0:00:03]}  g4 {[%clk 0:00:07]} 55. Ne8 {[%clk 0:00:02]}  g6 {[%clk 0:00:07]} 56. Ng7+ {[%clk 0:00:02]}  Kg5 {[%clk 0:00:07]} 57. Ne8 {[%clk 0:00:02]}  g3 {[%clk 0:00:08]} 0-1


[Site "https://www.chess.com"]

[Event "Titled Tuesday Blitz October 5 2021"]
[White "Fernandez Hernandez, Arturo A."]
[Black "Tristan, Leonardo"]
[WhiteFideId "3509230"]
[BlackFideId "113816"]
[WhiteElo "2400"]
[BlackElo "2404"]
[Result "0-1"]
[Round "06"]
[TimeControl "180+1"]
[Date "2021.10.05"]
[WhiteClock "0:00:02"]
[BlackClock "0:00:18"]

1. Nf3 {[%clk 0:03:00]}  d5 {[%clk 0:03:00]} 2. c4 {[%clk 0:02:57]}  e6 {[%clk 0:03:00]} 3. g3 {[%clk 0:02:57]}  Nf6 {[%clk 0:03:01]} 4. Bg2 {[%clk 0:02:56]}  Be7 {[%clk 0:03:01]} 5. O-O {[%clk 0:02:56]}  O-O {[%clk 0:03:02]} 6. b3 {[%clk 0:02:56]}  a5 {[%clk 0:03:02]} 7. Qc2 {[%clk 0:02:37]}  a4 {[%clk 0:03:02]} 8. Bb2 {[%clk 0:02:36]}  c5 {[%clk 0:02:59]} 9. e3 {[%clk 0:02:35]}  Nc6 {[%clk 0:02:59]} 10. d3 {[%clk 0:01:56]}  dxc4 {[%clk 0:02:52]} 11. dxc4 {[%clk 0:01:54]}  Nb4 {[%clk 0:02:52]} 12. Qc3 {[%clk 0:01:49]}  Qd3 {[%clk 0:02:49]} 13. Ne5 {[%clk 0:01:46]}  Qc2 {[%clk 0:02:48]} 14. Rc1 {[%clk 0:01:32]}  Qxc3 {[%clk 0:01:59]} 15. Bxc3 {[%clk 0:01:33]}  Bd6 {[%clk 0:01:47]} 16. a3 {[%clk 0:00:59]}  Bxe5 {[%clk 0:00:39]} 17. axb4 {[%clk 0:00:58]}  Bxc3 {[%clk 0:00:32]} 18. Nxc3 {[%clk 0:00:58]}  cxb4 {[%clk 0:00:33]} 19. Nxa4 {[%clk 0:00:58]}  Nd7 {[%clk 0:00:27]} 20. Rd1 {[%clk 0:00:53]}  Ra5 {[%clk 0:00:27]} 21. Bxb7 {[%clk 0:00:50]}  Bxb7 {[%clk 0:00:27]} 22. Rxd7 {[%clk 0:00:50]}  Bf3 {[%clk 0:00:23]} 23. Kf1 {[%clk 0:00:44]}  h5 {[%clk 0:00:23]} 24. h4 {[%clk 0:00:41]}  g5 {[%clk 0:00:23]} 25. hxg5 {[%clk 0:00:41]}  Rxg5 {[%clk 0:00:23]} 26. Ke1 {[%clk 0:00:41]}  h4 {[%clk 0:00:24]} 27. Rd4 {[%clk 0:00:31]}  h3 {[%clk 0:00:17]} 28. Rh4 {[%clk 0:00:31]}  Bg2 {[%clk 0:00:17]} 29. Ke2 {[%clk 0:00:22]}  Kg7 {[%clk 0:00:18]} 30. Nb6 {[%clk 0:00:10]}  Rh8 {[%clk 0:00:18]} 31. Rxh8 {[%clk 0:00:04]}  Kxh8 {[%clk 0:00:19]} 32. f4 {[%clk 0:00:04]}  Rxg3 {[%clk 0:00:18]} 33. Kf2 {[%clk 0:00:04]}  Rf3+ {[%clk 0:00:19]} 34. Kg1 {[%clk 0:00:05]}  Rxe3 {[%clk 0:00:19]} 35. Kh2 {[%clk 0:00:02]}  Rxb3 {[%clk 0:00:19]} 36. Nd7 {[%clk 0:00:01]}  Kg7 {[%clk 0:00:19]} 37. Ne5 {[%clk 0:00:02]}  Rc3 {[%clk 0:00:18]} 0-1


[Site "https://www.chess.com"]